[Event "Titled Tuesday Blitz August 15 Early 2023"]
[White "Elsa167"]
[Black "Musovic, Armin"]
[BlackFideId "939935"]
[WhiteElo "2964"]
[BlackElo "2583"]
[Result "1-0"]
[Round "2"]
[TimeControl "180+1"]
[Date "2023.08.15"]
[WhiteClock "0:00:08"]
[BlackClock "0:00:27"]
[Board "26"]

1. d4 {[%clk 0:03:00]}  d5 {[%clk 0:02:59]} 2. c4 {[%clk 0:03:01]}  c5 {[%clk 0:03:00]} 3. cxd5 {[%clk 0:03:00]}  Nf6 {[%clk 0:02:59]} 4. Nf3 {[%clk 0:02:57]}  cxd4 {[%clk 0:02:59]} 5. Qxd4 {[%clk 0:02:54]}  Qxd5 {[%clk 0:03:00]} 6. Nc3 {[%clk 0:02:54]}  Qxd4 {[%clk 0:03:00]} 7. Nxd4 {[%clk 0:02:55]}  a6 {[%clk 0:03:01]} 8. g3 {[%clk 0:02:55]}  e5 {[%clk 0:03:01]} 9. Nb3 {[%clk 0:02:54]}  Nc6 {[%clk 0:03:01]} 10. Bg2 {[%clk 0:02:52]}  Be6 {[%clk 0:03:02]} 11. Bg5 {[%clk 0:02:49]}  O-O-O {[%clk 0:03:01]} 12. O-O {[%clk 0:02:43]}  Bxb3 {[%clk 0:02:46]} 13. axb3 {[%clk 0:02:42]}  Nd4 {[%clk 0:02:46]} 14. Rad1 {[%clk 0:01:55]}  Be7 {[%clk 0:02:19]} 15. Bxf6 {[%clk 0:01:50]}  Bxf6 {[%clk 0:02:20]} 16. e3 {[%clk 0:01:45]}  Nxb3 {[%clk 0:02:17]} 17. Bd5 {[%clk 0:01:46]}  Nc5 {[%clk 0:02:08]} 18. Bxf7 {[%clk 0:01:46]}  Rxd1 {[%clk 0:02:04]} 19. Rxd1 {[%clk 0:01:46]}  Rf8 {[%clk 0:02:03]} 20. Bc4 {[%clk 0:01:41]}  e4 {[%clk 0:01:54]} 21. Rd5 {[%clk 0:01:26]}  Be7 {[%clk 0:01:49]} 22. b4 {[%clk 0:01:15]}  Nd7 {[%clk 0:01:44]} 23. Nxe4 {[%clk 0:00:59]}  Bxb4 {[%clk 0:01:21]} 24. Rd4 {[%clk 0:00:59]}  Bc5 {[%clk 0:01:19]} 25. Rxd7 {[%clk 0:00:58]}  Kxd7 {[%clk 0:01:17]} 26. Nxc5+ {[%clk 0:00:59]}  Kd6 {[%clk 0:01:18]} 27. Nxb7+ {[%clk 0:00:58]}  Kc7 {[%clk 0:01:18]} 28. Bxa6 {[%clk 0:00:58]}  Kb6 {[%clk 0:01:15]} 29. Bd3 {[%clk 0:00:56]}  Kxb7 {[%clk 0:01:14]} 30. Bxh7 {[%clk 0:00:57]}  Kc6 {[%clk 0:01:14]} 31. Kg2 {[%clk 0:00:57]}  Kd5 {[%clk 0:01:14]} 32. h4 {[%clk 0:00:57]}  Ke5 {[%clk 0:01:14]} 33. f4+ {[%clk 0:00:57]}  Kf6 {[%clk 0:01:14]} 34. Be4 {[%clk 0:00:57]}  g6 {[%clk 0:01:10]} 35. g4 {[%clk 0:00:53]}  Rb8 {[%clk 0:01:09]} 36. g5+ {[%clk 0:00:51]}  Kg7 {[%clk 0:01:09]} 37. Bf3 {[%clk 0:00:45]}  Rb4 {[%clk 0:01:09]} 38. Kg3 {[%clk 0:00:45]}  Rb1 {[%clk 0:01:09]} 39. h5 {[%clk 0:00:44]}  Rb3 {[%clk 0:01:08]} 40. h6+ {[%clk 0:00:41]}  Kh7 {[%clk 0:01:08]} 41. e4 {[%clk 0:00:41]}  Re3 {[%clk 0:01:07]} 42. f5 {[%clk 0:00:40]}  Re1 {[%clk 0:01:07]} 43. Kf4 {[%clk 0:00:40]}  Rg1 {[%clk 0:01:05]} 44. f6 {[%clk 0:00:40]}  Ra1 {[%clk 0:01:05]} 45. e5 {[%clk 0:00:41]}  Ra4+ {[%clk 0:01:04]} 46. Be4 {[%clk 0:00:41]}  Ra6 {[%clk 0:01:02]} 47. f7 {[%clk 0:00:33]}  Ra1 {[%clk 0:00:50]} 48. e6 {[%clk 0:00:25]}  Ra2 {[%clk 0:00:43]} 49. e7 {[%clk 0:00:22]}  Rf2+ {[%clk 0:00:40]} 50. Bf3 {[%clk 0:00:16]}  Ra2 {[%clk 0:00:37]} 51. f8=Q {[%clk 0:00:09]}  Ra4+ {[%clk 0:00:37]} 52. Kg3 {[%clk 0:00:08]}  Rg4+ {[%clk 0:00:36]} 53. Kf2 {[%clk 0:00:08]}  Rg2+ {[%clk 0:00:36]} 54. Ke3 {[%clk 0:00:08]}  Re2+ {[%clk 0:00:37]} 55. Kd4 {[%clk 0:00:09]}  Re4+ {[%clk 0:00:36]} 56. Kd5 {[%clk 0:00:08]}  Rd4+ {[%clk 0:00:36]} 57. Ke5 {[%clk 0:00:08]}  Rd5+ {[%clk 0:00:36]} 58. Ke6 {[%clk 0:00:08]}  Rd6+ {[%clk 0:00:27]} 59. Kf7 {[%clk 0:00:08]} 1-0


[Site "https://www.chess.com"]

[Event "Titled Tuesday Blitz August 15 Early 2023"]
[White "Roebers, Eline"]
[Black "Makhnev, Denis"]
[WhiteFideId "1058401"]
[BlackFideId "13707647"]
[WhiteElo "2571"]
[BlackElo "2960"]
[Result "0-1"]
[Round "2"]
[TimeControl "180+1"]
[Date "2023.08.15"]
[WhiteClock "0:00:07"]
[BlackClock "0:00:15"]
[Board "28"]

1. e4 {[%clk 0:03:00]}  e5 {[%clk 0:02:58]} 2. Nf3 {[%clk 0:02:58]}  Nc6 {[%clk 0:02:59]} 3. Nc3 {[%clk 0:02:58]}  Nf6 {[%clk 0:02:59]} 4. a3 {[%clk 0:02:58]}  d5 {[%clk 0:02:56]} 5. Bb5 {[%clk 0:02:56]}  d4 {[%clk 0:02:55]} 6. Ne2 {[%clk 0:02:54]}  Bd6 {[%clk 0:02:55]} 7. d3 {[%clk 0:02:53]}  O-O {[%clk 0:02:48]} 8. O-O {[%clk 0:02:46]}  Nd7 {[%clk 0:02:43]} 9. Ng3 {[%clk 0:02:36]}  Nb6 {[%clk 0:02:43]} 10. c3 {[%clk 0:02:36]}  dxc3 {[%clk 0:02:27]} 11. bxc3 {[%clk 0:02:37]}  Na5 {[%clk 0:01:53]} 12. d4 {[%clk 0:02:32]}  Bg4 {[%clk 0:01:53]} 13. h3 {[%clk 0:02:29]}  Bxf3 {[%clk 0:01:49]} 14. Qxf3 {[%clk 0:02:30]}  Nb3 {[%clk 0:01:44]} 15. Rb1 {[%clk 0:02:28]}  Nxc1 {[%clk 0:01:45]} 16. Rfxc1 {[%clk 0:02:27]}  g6 {[%clk 0:01:42]} 17. a4 {[%clk 0:02:24]}  c6 {[%clk 0:01:32]} 18. Bd3 {[%clk 0:02:23]}  Qc7 {[%clk 0:01:32]} 19. a5 {[%clk 0:02:15]}  Nd7 {[%clk 0:01:31]} 20. a6 {[%clk 0:02:15]}  b6 {[%clk 0:01:31]} 21. h4 {[%clk 0:02:09]}  h5 {[%clk 0:00:50]} 22. Bc4 {[%clk 0:01:51]}  Kg7 {[%clk 0:00:38]} 23. Re1 {[%clk 0:01:32]}  Nf6 {[%clk 0:00:37]} 24. Nf5+ {[%clk 0:00:59]}  gxf5 {[%clk 0:00:36]} 25. Qxf5 {[%clk 0:01:00]}  Nh7 {[%clk 0:00:35]} 26. Re3 {[%clk 0:00:51]}  Kh8 {[%clk 0:00:35]} 27. Qxh5 {[%clk 0:00:48]}  Rae8 {[%clk 0:00:30]} 28. Rf3 {[%clk 0:00:42]}  exd4 {[%clk 0:00:25]} 29. cxd4 {[%clk 0:00:27]}  f6 {[%clk 0:00:22]} 30. Bd3 {[%clk 0:00:26]}  c5 {[%clk 0:00:22]} 31. dxc5 {[%clk 0:00:21]}  Bxc5 {[%clk 0:00:18]} 32. Rf5 {[%clk 0:00:14]}  Re5 {[%clk 0:00:18]} 33. Rc1 {[%clk 0:00:14]}  Bxf2+ {[%clk 0:00:16]} 34. Kxf2 {[%clk 0:00:12]}  Qxc1 {[%clk 0:00:17]} 35. Qg6 {[%clk 0:00:07]}  Qc5+ {[%clk 0:00:15]} 0-1


[Site "https://www.chess.com"]

[Event "Titled Tuesday Blitz August 15 Early 2023"]
[White "Principe, Alexander"]
[Black "Makarian, Rudik"]
[WhiteFideId "3804542"]
[BlackFideId "44105681"]
[WhiteElo "2569"]
[BlackElo "2956"]
[Result "0-1"]
[Round "2"]
[TimeControl "180+1"]
[Date "2023.08.15"]
[WhiteClock "0:00:04"]
[BlackClock "0:01:05"]
[Board "30"]

1. e4 {[%clk 0:02:57]}  c5 {[%clk 0:02:59]} 2. Nf3 {[%clk 0:02:57]}  d6 {[%clk 0:02:59]} 3. d4 {[%clk 0:02:57]}  cxd4 {[%clk 0:03:00]} 4. Nxd4 {[%clk 0:02:58]}  Nf6 {[%clk 0:03:01]} 5. Nc3 {[%clk 0:02:59]}  Nc6 {[%clk 0:03:01]} 6. Bg5 {[%clk 0:02:59]}  Bd7 {[%clk 0:03:01]} 7. Qd2 {[%clk 0:02:59]}  h6 {[%clk 0:03:00]} 8. Bxf6 {[%clk 0:02:53]}  gxf6 {[%clk 0:03:01]} 9. O-O-O {[%clk 0:02:53]}  Nxd4 {[%clk 0:03:01]} 10. Qxd4 {[%clk 0:02:53]}  Qa5 {[%clk 0:03:02]} 11. f4 {[%clk 0:02:52]}  Rc8 {[%clk 0:03:02]} 12. Kb1 {[%clk 0:02:51]}  h5 {[%clk 0:03:02]} 13. Bd3 {[%clk 0:02:51]}  Qc5 {[%clk 0:03:02]} 14. Qxc5 {[%clk 0:02:47]}  Rxc5 {[%clk 0:03:02]} 15. Nd5 {[%clk 0:02:46]}  h4 {[%clk 0:02:55]} 16. c4 {[%clk 0:02:41]}  a5 {[%clk 0:02:53]} 17. Rhg1 {[%clk 0:02:34]}  Bg7 {[%clk 0:02:51]} 18. f5 {[%clk 0:02:32]}  Bh6 {[%clk 0:02:46]} 19. b3 {[%clk 0:02:31]}  Bg5 {[%clk 0:02:39]} 20. a3 {[%clk 0:02:29]}  e6 {[%clk 0:02:37]} 21. b4 {[%clk 0:02:27]}  axb4 {[%clk 0:02:35]} 22. axb4 {[%clk 0:02:27]}  Rc6 {[%clk 0:02:28]} 23. b5 {[%clk 0:01:54]}  Rc5 {[%clk 0:02:27]} 24. Nb6 {[%clk 0:01:54]}  Bf4 {[%clk 0:02:19]} 25. h3 {[%clk 0:01:29]}  Ke7 {[%clk 0:02:18]} 26. Kb2 {[%clk 0:01:18]}  Be5+ {[%clk 0:02:17]} 27. Kb3 {[%clk 0:01:18]}  Rg8 {[%clk 0:02:13]} 28. Be2 {[%clk 0:01:16]}  Rg3+ {[%clk 0:02:11]} 29. Rd3 {[%clk 0:01:15]}  Rg5 {[%clk 0:01:57]} 30. Bf3 {[%clk 0:01:07]}  Bxb5 {[%clk 0:01:54]} 31. cxb5 {[%clk 0:00:57]}  Rxb5+ {[%clk 0:01:55]} 32. Ka4 {[%clk 0:00:57]}  Rxb6 {[%clk 0:01:53]} 33. Rc1 {[%clk 0:00:57]}  Kd7 {[%clk 0:01:46]} 34. Rb3 {[%clk 0:00:53]}  Rxb3 {[%clk 0:01:44]} 35. Kxb3 {[%clk 0:00:54]}  Rg8 {[%clk 0:01:44]} 36. Rc4 {[%clk 0:00:49]}  b5 {[%clk 0:01:38]} 37. Rb4 {[%clk 0:00:49]}  Kc6 {[%clk 0:01:38]} 38. Be2 {[%clk 0:00:41]}  Rxg2 {[%clk 0:01:32]} 39. Bxb5+ {[%clk 0:00:41]}  Kc5 {[%clk 0:01:32]} 40. Ka3 {[%clk 0:00:34]}  Rg3+ {[%clk 0:01:12]} 41. Ka4 {[%clk 0:00:34]}  Rxh3 {[%clk 0:01:10]} 42. fxe6 {[%clk 0:00:34]}  fxe6 {[%clk 0:01:10]} 43. Bd7 {[%clk 0:00:35]}  Rh1 {[%clk 0:01:05]} 44. Bxe6 {[%clk 0:00:32]}  Ra1+ {[%clk 0:01:05]} 45. Kb3 {[%clk 0:00:04]}  Rb1+ {[%clk 0:01:05]} 0-1


[Site "https://www.chess.com"]

[Event "Titled Tuesday Blitz August 15 Early 2023"]
[White "Demidov, Mikhail"]
[Black "Di Nicolantonio, Lucas"]
[WhiteFideId "4197143"]
[BlackFideId "680460"]
[WhiteElo "2945"]
[BlackElo "2561"]
[Result "0-1"]
[Round "2"]
[TimeControl "180+1"]
[Date "2023.08.15"]
[WhiteClock "0:00:00"]
[BlackClock "0:00:24"]
[Board "33"]

1. b3 {[%clk 0:03:00]}  e5 {[%clk 0:02:58]} 2. Bb2 {[%clk 0:03:00]}  Nc6 {[%clk 0:02:59]} 3. e3 {[%clk 0:03:00]}  d5 {[%clk 0:02:53]} 4. Bb5 {[%clk 0:02:59]}  Ne7 {[%clk 0:02:53]} 5. c4 {[%clk 0:02:55]}  a6 {[%clk 0:02:53]} 6. Ba4 {[%clk 0:02:34]}  Be6 {[%clk 0:02:39]} 7. d3 {[%clk 0:02:24]}  Rb8 {[%clk 0:02:02]} 8. Bxc6+ {[%clk 0:02:03]}  Nxc6 {[%clk 0:02:02]} 9. cxd5 {[%clk 0:01:57]}  Qxd5 {[%clk 0:01:56]} 10. Nf3 {[%clk 0:01:57]}  Bb4+ {[%clk 0:01:55]} 11. Ke2 {[%clk 0:01:54]}  Rd8 {[%clk 0:01:42]} 12. Qc2 {[%clk 0:01:45]}  e4 {[%clk 0:01:36]} 13. Rd1 {[%clk 0:00:38]}  exf3+ {[%clk 0:01:34]} 14. gxf3 {[%clk 0:00:39]}  O-O {[%clk 0:01:31]} 15. Nc3 {[%clk 0:00:39]}  Qh5 {[%clk 0:01:27]} 16. Ne4 {[%clk 0:00:38]}  f6 {[%clk 0:01:05]} 17. Ng3 {[%clk 0:00:30]}  Qh3 {[%clk 0:00:59]} 18. d4 {[%clk 0:00:20]}  Rfe8 {[%clk 0:00:57]} 19. Rg1 {[%clk 0:00:15]}  Kh8 {[%clk 0:00:52]} 20. Rad1 {[%clk 0:00:14]}  Bd5 {[%clk 0:00:52]} 21. Ne4 {[%clk 0:00:14]}  Qh5 {[%clk 0:00:46]} 22. Kf1 {[%clk 0:00:12]}  Qxf3 {[%clk 0:00:44]} 23. Ng3 {[%clk 0:00:08]}  Rxe3 {[%clk 0:00:43]} 24. Bc1 {[%clk 0:00:00]}  Nxd4 {[%clk 0:00:24]} 0-1


[Site "https://www.chess.com"]

[Event "Titled Tuesday Blitz August 15 Early 2023"]
[White "Ismagilov, Damir"]
[Black "Kamsky, Gata"]
[WhiteFideId "34199982"]
[BlackFideId "2000024"]
[WhiteElo "2560"]
[BlackElo "2929"]
[Result "1/2-1/2"]
[Round "2"]
[TimeControl "180+1"]
[Date "2023.08.15"]
[WhiteClock "0:00:09"]
[BlackClock "0:00:05"]
[Board "34"]

1. d4 {[%clk 0:03:00]}  Nf6 {[%clk 0:02:55]} 2. c4 {[%clk 0:03:00]}  g6 {[%clk 0:02:52]} 3. Nc3 {[%clk 0:03:01]}  Bg7 {[%clk 0:02:51]} 4. e4 {[%clk 0:03:00]}  d6 {[%clk 0:02:51]} 5. Be2 {[%clk 0:03:00]}  e5 {[%clk 0:02:51]} 6. Nf3 {[%clk 0:02:59]}  O-O {[%clk 0:02:51]} 7. O-O {[%clk 0:02:59]}  Na6 {[%clk 0:02:50]} 8. Be3 {[%clk 0:02:58]}  Ng4 {[%clk 0:02:41]} 9. Bg5 {[%clk 0:02:58]}  Qe8 {[%clk 0:02:39]} 10. Rc1 {[%clk 0:02:58]}  h6 {[%clk 0:02:22]} 11. Bh4 {[%clk 0:02:53]}  c6 {[%clk 0:02:16]} 12. h3 {[%clk 0:01:58]}  Nf6 {[%clk 0:02:15]} 13. Bxf6 {[%clk 0:01:20]}  Bxf6 {[%clk 0:02:14]} 14. d5 {[%clk 0:01:10]}  c5 {[%clk 0:02:13]} 15. a3 {[%clk 0:01:03]}  Bd7 {[%clk 0:02:05]} 16. Rb1 {[%clk 0:01:01]}  b6 {[%clk 0:01:58]} 17. b4 {[%clk 0:01:01]}  Qe7 {[%clk 0:01:52]} 18. b5 {[%clk 0:00:56]}  Nc7 {[%clk 0:01:49]} 19. a4 {[%clk 0:00:57]}  Bg7 {[%clk 0:01:40]} 20. a5 {[%clk 0:00:56]}  f5 {[%clk 0:01:40]} 21. Ra1 {[%clk 0:00:50]}  f4 {[%clk 0:01:36]} 22. Qd3 {[%clk 0:00:28]}  Rfb8 {[%clk 0:01:30]} 23. Ra2 {[%clk 0:00:25]}  a6 {[%clk 0:01:28]} 24. axb6 {[%clk 0:00:24]}  Rxb6 {[%clk 0:01:28]} 25. Rfa1 {[%clk 0:00:25]}  Qd8 {[%clk 0:01:25]} 26. Nd2 {[%clk 0:00:21]}  h5 {[%clk 0:01:17]} 27. Bd1 {[%clk 0:00:18]}  axb5 {[%clk 0:01:12]} 28. Rxa8 {[%clk 0:00:17]}  Nxa8 {[%clk 0:01:12]} 29. cxb5 {[%clk 0:00:18]}  Rb8 {[%clk 0:01:07]} 30. Ra6 {[%clk 0:00:16]}  Bc8 {[%clk 0:01:05]} 31. Ra7 {[%clk 0:00:14]}  Nb6 {[%clk 0:01:03]} 32. Nc4 {[%clk 0:00:14]}  Rb7 {[%clk 0:01:00]} 33. Rxb7 {[%clk 0:00:12]}  Bxb7 {[%clk 0:00:59]} 34. Na5 {[%clk 0:00:12]}  Bc8 {[%clk 0:00:59]} 35. Nc6 {[%clk 0:00:12]}  Qc7 {[%clk 0:00:58]} 36. Qb1 {[%clk 0:00:12]}  Bf6 {[%clk 0:00:53]} 37. Qa2 {[%clk 0:00:12]}  Kg7 {[%clk 0:00:50]} 38. Qa7 {[%clk 0:00:12]}  Qxa7 {[%clk 0:00:50]} 39. Nxa7 {[%clk 0:00:13]}  Bd8 {[%clk 0:00:45]} 40. Nc6 {[%clk 0:00:13]}  Bc7 {[%clk 0:00:44]} 41. Kf1 {[%clk 0:00:11]}  Bd7 {[%clk 0:00:41]} 42. Ke2 {[%clk 0:00:11]}  g5 {[%clk 0:00:41]} 43. Kd3 {[%clk 0:00:11]}  g4 {[%clk 0:00:40]} 44. hxg4 {[%clk 0:00:11]}  hxg4 {[%clk 0:00:40]} 45. Na4 {[%clk 0:00:09]}  Nxa4 {[%clk 0:00:36]} 46. Bxa4 {[%clk 0:00:10]}  Bb6 {[%clk 0:00:34]} 47. Kc4 {[%clk 0:00:09]}  Kf6 {[%clk 0:00:32]} 48. Bd1 {[%clk 0:00:08]}  Kg5 {[%clk 0:00:31]} 49. Be2 {[%clk 0:00:08]}  g3 {[%clk 0:00:18]} 50. f3 {[%clk 0:00:07]}  Bh3 {[%clk 0:00:16]} 51. Bf1 {[%clk 0:00:08]}  Bd7 {[%clk 0:00:15]} 52. Ne7 {[%clk 0:00:07]}  Kf6 {[%clk 0:00:15]} 53. Nc6 {[%clk 0:00:08]}  Be8 {[%clk 0:00:11]} 54. Nb8 {[%clk 0:00:08]}  Ke7 {[%clk 0:00:08]} 55. Nc6+ {[%clk 0:00:08]}  Kd7 {[%clk 0:00:09]} 56. Be2 {[%clk 0:00:08]}  Kc7 {[%clk 0:00:09]} 57. Bf1 {[%clk 0:00:09]}  Bd7 {[%clk 0:00:05]} 58. Be2 {[%clk 0:00:09]}  Kb7 {[%clk 0:00:05]} 59. Bf1 {[%clk 0:00:09]}  Bc7 {[%clk 0:00:05]} 60. Be2 {[%clk 0:00:09]}  Kb6 {[%clk 0:00:05]} 61. Bf1 {[%clk 0:00:09]}  Be8 {[%clk 0:00:05]} 62. Be2 {[%clk 0:00:09]}  Bd7 {[%clk 0:00:05]} 63. Bd3 {[%clk 0:00:09]}  Kb7 {[%clk 0:00:05]} 64. Be2 {[%clk 0:00:09]}  Bb6 {[%clk 0:00:05]} 65. Bd3 {[%clk 0:00:09]}  Kc7 {[%clk 0:00:05]} 66. Be2 {[%clk 0:00:09]}  Kb7 {[%clk 0:00:05]} 1/2-1/2


[Site "https://www.chess.com"]

[Event "Titled Tuesday Blitz August 15 Early 2023"]
[White "Terry, Renato"]
[Black "Karamsetty, Jeevan"]
[WhiteFideId "3803457"]
[BlackFideId "2025337"]
[WhiteElo "2924"]
[BlackElo "2558"]
[Result "1-0"]
[Round "2"]
[TimeControl "180+1"]
[Date "2023.08.15"]
[WhiteClock "0:01:21"]
[BlackClock "0:00:01"]
[Board "35"]

1. e4 {[%clk 0:02:56]}  d6 {[%clk 0:02:59]} 2. d4 {[%clk 0:02:56]}  Nf6 {[%clk 0:02:58]} 3. Nc3 {[%clk 0:02:56]}  e5 {[%clk 0:02:59]} 4. dxe5 {[%clk 0:02:50]}  dxe5 {[%clk 0:03:00]} 5. Qxd8+ {[%clk 0:02:50]}  Kxd8 {[%clk 0:03:00]} 6. Bg5 {[%clk 0:02:47]}  c6 {[%clk 0:02:49]} 7. Nf3 {[%clk 0:02:42]}  Bd6 {[%clk 0:02:46]} 8. Bc4 {[%clk 0:02:39]}  Rf8 {[%clk 0:02:41]} 9. O-O-O {[%clk 0:02:32]}  Kc7 {[%clk 0:02:41]} 10. Bh4 {[%clk 0:02:08]}  h6 {[%clk 0:02:35]} 11. a3 {[%clk 0:02:02]}  a5 {[%clk 0:02:30]} 12. Rd2 {[%clk 0:01:57]}  Bg4 {[%clk 0:02:01]} 13. Rhd1 {[%clk 0:01:55]}  Bxf3 {[%clk 0:02:00]} 14. gxf3 {[%clk 0:01:56]}  Bc5 {[%clk 0:01:58]} 15. Bg3 {[%clk 0:01:50]}  Nbd7 {[%clk 0:01:54]} 16. f4 {[%clk 0:01:51]}  Rae8 {[%clk 0:00:56]} 17. fxe5 {[%clk 0:01:51]}  Nxe5 {[%clk 0:00:54]} 18. Bb3 {[%clk 0:01:51]}  Kc8 {[%clk 0:00:47]} 19. Kb1 {[%clk 0:01:39]}  Nh5 {[%clk 0:00:39]} 20. f4 {[%clk 0:01:38]}  Nxg3 {[%clk 0:00:31]} 21. hxg3 {[%clk 0:01:39]}  Ng4 {[%clk 0:00:28]} 22. e5 {[%clk 0:01:36]}  b5 {[%clk 0:00:25]} 23. Ne4 {[%clk 0:01:34]}  Be7 {[%clk 0:00:24]} 24. a4 {[%clk 0:01:32]}  Rd8 {[%clk 0:00:22]} 25. Rxd8+ {[%clk 0:01:31]}  Rxd8 {[%clk 0:00:19]} 26. Rxd8+ {[%clk 0:01:31]}  Kxd8 {[%clk 0:00:15]} 27. axb5 {[%clk 0:01:32]}  cxb5 {[%clk 0:00:15]} 28. Bxf7 {[%clk 0:01:32]}  Kc7 {[%clk 0:00:14]} 29. c3 {[%clk 0:01:31]}  Ne3 {[%clk 0:00:14]} 30. Kc1 {[%clk 0:01:30]}  b4 {[%clk 0:00:12]} 31. Kd2 {[%clk 0:01:27]}  Nf5 {[%clk 0:00:09]} 32. Bg6 {[%clk 0:01:21]}  bxc3+ {[%clk 0:00:07]} 33. bxc3 {[%clk 0:01:22]}  Nh4 {[%clk 0:00:03]} 34. gxh4 {[%clk 0:01:22]}  Bxh4 {[%clk 0:00:04]} 35. Nc5 {[%clk 0:01:20]}  Kc6 {[%clk 0:00:03]} 36. Ne6 {[%clk 0:01:20]}  Bg3 {[%clk 0:00:03]} 37. Ke3 {[%clk 0:01:20]}  Kd5 {[%clk 0:00:04]} 38. Nxg7 {[%clk 0:01:20]}  a4 {[%clk 0:00:03]} 39. Nf5 {[%clk 0:01:20]}  a3 {[%clk 0:00:03]} 40. Bf7+ {[%clk 0:01:20]}  Kc5 {[%clk 0:00:01]} 41. Nxg3 {[%clk 0:01:21]} 1-0


[Site "https://www.chess.com"]

[Event "Titled Tuesday Blitz August 15 Early 2023"]
[White "Fieberg, Samuel"]
[Black "Perez Ponsa, Federico"]
[WhiteFideId "12901717"]
[BlackFideId "117927"]
[WhiteElo "2552"]
[BlackElo "2920"]
[Result "0-1"]
[Round "2"]
[TimeControl "180+1"]
[Date "2023.08.15"]
[WhiteClock "0:00:03"]
[BlackClock "0:00:09"]
[Board "38"]

1. Nf3 {[%clk 0:03:00]}  Nf6 {[%clk 0:02:58]} 2. g3 {[%clk 0:03:01]}  g6 {[%clk 0:02:58]} 3. b3 {[%clk 0:03:01]}  Bg7 {[%clk 0:02:59]} 4. Bb2 {[%clk 0:03:01]}  d5 {[%clk 0:02:59]} 5. Bg2 {[%clk 0:03:01]}  c5 {[%clk 0:03:00]} 6. d4 {[%clk 0:02:55]}  Ne4 {[%clk 0:02:53]} 7. Nfd2 {[%clk 0:02:31]}  Qa5 {[%clk 0:02:08]} 8. O-O {[%clk 0:02:20]}  Nxd2 {[%clk 0:01:41]} 9. Qxd2 {[%clk 0:02:20]}  Qxd2 {[%clk 0:01:41]} 10. Nxd2 {[%clk 0:02:21]}  cxd4 {[%clk 0:01:38]} 11. Bxd5 {[%clk 0:02:11]}  Nc6 {[%clk 0:01:37]} 12. Bxc6+ {[%clk 0:02:02]}  bxc6 {[%clk 0:01:29]} 13. e3 {[%clk 0:02:03]}  Bh3 {[%clk 0:01:06]} 14. Rfe1 {[%clk 0:01:47]}  c5 {[%clk 0:01:00]} 15. exd4 {[%clk 0:01:46]}  cxd4 {[%clk 0:01:01]} 16. Nf3 {[%clk 0:01:42]}  Rd8 {[%clk 0:01:01]} 17. Rad1 {[%clk 0:01:25]}  Bg4 {[%clk 0:00:41]} 18. Kg2 {[%clk 0:01:25]}  Rd7 {[%clk 0:00:32]} 19. h3 {[%clk 0:01:14]}  Bxf3+ {[%clk 0:00:27]} 20. Kxf3 {[%clk 0:01:14]}  O-O {[%clk 0:00:27]} 21. g4 {[%clk 0:00:30]}  e5 {[%clk 0:00:20]} 22. g5 {[%clk 0:00:28]}  f5 {[%clk 0:00:19]} 23. gxf6 {[%clk 0:00:28]}  Rxf6+ {[%clk 0:00:19]} 24. Kg2 {[%clk 0:00:27]}  Rf5 {[%clk 0:00:19]} 25. Rd3 {[%clk 0:00:23]}  Rdf7 {[%clk 0:00:19]} 26. f3 {[%clk 0:00:22]}  Bh6 {[%clk 0:00:19]} 27. Bc1 {[%clk 0:00:19]}  Bxc1 {[%clk 0:00:19]} 28. Rxc1 {[%clk 0:00:20]}  Rg5+ {[%clk 0:00:20]} 29. Kf2 {[%clk 0:00:20]}  e4 {[%clk 0:00:20]} 30. Rxd4 {[%clk 0:00:17]}  Rxf3+ {[%clk 0:00:21]} 31. Ke2 {[%clk 0:00:15]}  Rg2+ {[%clk 0:00:21]} 32. Ke1 {[%clk 0:00:11]}  Rg1+ {[%clk 0:00:22]} 33. Kd2 {[%clk 0:00:11]}  Rg2+ {[%clk 0:00:14]} 34. Ke1 {[%clk 0:00:09]}  e3 {[%clk 0:00:11]} 35. Rcd1 {[%clk 0:00:04]}  Rxh3 {[%clk 0:00:08]} 36. Rf4 {[%clk 0:00:04]}  Rh1+ {[%clk 0:00:07]} 37. Rf1 {[%clk 0:00:04]}  Rxf1+ {[%clk 0:00:08]} 38. Kxf1 {[%clk 0:00:03]}  e2+ {[%clk 0:00:09]} 0-1


[Site "https://www.chess.com"]

[Event "Titled Tuesday Blitz August 15 Early 2023"]
[White "Kazakouski, Valery"]
[Black "Thecourseoisildur"]
[WhiteFideId "13507443"]
[WhiteElo "2915"]
[BlackElo "2552"]
[Result "1-0"]
[Round "2"]
[TimeControl "180+1"]
[Date "2023.08.15"]
[WhiteClock "0:01:46"]
[BlackClock "0:00:00"]
[Board "39"]

1. Nf3 {[%clk 0:03:00]}  Nf6 {[%clk 0:02:55]} 2. c4 {[%clk 0:03:01]}  g6 {[%clk 0:02:39]} 3. g3 {[%clk 0:03:00]}  Bg7 {[%clk 0:02:39]} 4. Bg2 {[%clk 0:03:00]}  O-O {[%clk 0:02:39]} 5. O-O {[%clk 0:03:00]}  d5 {[%clk 0:02:39]} 6. cxd5 {[%clk 0:03:01]}  Nxd5 {[%clk 0:02:40]} 7. d4 {[%clk 0:03:02]}  Nb6 {[%clk 0:02:40]} 8. Nc3 {[%clk 0:03:02]}  Nc6 {[%clk 0:02:40]} 9. e3 {[%clk 0:03:02]}  Re8 {[%clk 0:02:25]} 10. Re1 {[%clk 0:03:02]}  a5 {[%clk 0:02:22]} 11. h3 {[%clk 0:02:51]}  a4 {[%clk 0:02:20]} 12. d5 {[%clk 0:02:43]}  Bxc3 {[%clk 0:02:18]} 13. bxc3 {[%clk 0:02:43]}  Qxd5 {[%clk 0:02:18]} 14. Nd4 {[%clk 0:02:44]}  Qc5 {[%clk 0:02:18]} 15. Nxc6 {[%clk 0:02:41]}  bxc6 {[%clk 0:02:18]} 16. Qd4 {[%clk 0:02:42]}  Qxd4 {[%clk 0:02:16]} 17. cxd4 {[%clk 0:02:42]}  Bd7 {[%clk 0:02:09]} 18. Ba3 {[%clk 0:02:41]}  Nc4 {[%clk 0:02:04]} 19. Bb4 {[%clk 0:02:41]}  Rab8 {[%clk 0:02:04]} 20. a3 {[%clk 0:02:41]}  Rb6 {[%clk 0:02:00]} 21. Rac1 {[%clk 0:02:40]}  Be6 {[%clk 0:01:59]} 22. Rc2 {[%clk 0:02:29]}  Reb8 {[%clk 0:01:35]} 23. Rec1 {[%clk 0:02:28]}  Rxb4 {[%clk 0:01:35]} 24. axb4 {[%clk 0:02:28]}  Rxb4 {[%clk 0:01:36]} 25. Bf1 {[%clk 0:02:28]}  Na5 {[%clk 0:01:36]} 26. Ra1 {[%clk 0:02:21]}  Kf8 {[%clk 0:01:06]} 27. Ra3 {[%clk 0:02:12]}  Nc4 {[%clk 0:00:41]} 28. Rac3 {[%clk 0:02:03]}  Na5 {[%clk 0:00:39]} 29. Rc5 {[%clk 0:01:57]}  Nb3 {[%clk 0:00:34]} 30. Rxc6 {[%clk 0:01:58]}  a3 {[%clk 0:00:34]} 31. Ra6 {[%clk 0:01:57]}  Na1 {[%clk 0:00:28]} 32. Rc1 {[%clk 0:01:53]}  Nb3 {[%clk 0:00:20]} 33. Rd1 {[%clk 0:01:47]}  Bf5 {[%clk 0:00:04]} 34. Ra8+ {[%clk 0:01:44]}  Kg7 {[%clk 0:00:04]} 35. Rxa3 {[%clk 0:01:45]}  Bc2 {[%clk 0:00:00]} 36. Re1 {[%clk 0:01:46]} 1-0


[Site "https://www.chess.com"]